bitfinex-derivatives/quotes_ETHF0:USTF0_20250320
["timestamp","ask_amount","ask_price","bid_price","bid_amount"]
[1742493007600,1.01423,1972.9,1972.8,1.289]
[1742493007790,1.01409,1973.2,1972.8,1.289]
[1742493007990,1.0141,1973.2,1972.8,4.4968]
[1742493008191,1.0141,1973.2,1972.9,1.67638]
[1742493008393,1.02170206,1973.2,1973.0,1.289]
[1742493008593,1.01411,1973.1,1973.0,1.289]
[1742493008996,1.02169206,1973.2,1973.0,1.289]
[1742493009301,1.01411,1973.1,1973.0,1.289]
[1742493010098,0.00760206,1973.2,1973.0,1.289]
[1742493010099,1.02168206,1973.2,1973.0,1.289]
[1742493010298,2.36361,1973.1,1973.0,1.289]
[1742493013301,1.01417,1973.0,1972.9,0.00760206]
[1742493013496,1.01417,1973.0,1971.7,60.36599]
[1742493013497,1.01449,1972.4,1972.2,1.66026]
[1742493013697,1.01447,1972.4,1972.3,1.3732]
[1742493014206,4.0795,1972.6,1972.3,1.3732]
[1742493014407,1.01447,1972.4,1972.3,1.3732]
[1742493014600,1.01447,1972.4,1972.3,1.38080206]
[1742493016006,4.41047,1972.4,1972.3,0.00760206]
[1742493018813,4.41047,1972.4,1972.3,1.40620206]
[1742493022108,4.41047,1972.4,1972.3,0.00760206]
[1742493022711,4.41047,1972.4,1972.3,1.31570206]
[1742493023312,3.396,1972.4,1972.3,2.33023206]
[1742493023614,3.396,1972.5,1972.4,1.01445]
[1742493023815,4.41044,1972.5,1972.3,2.33019206]
[1742493024017,4.41044,1972.5,1972.4,3.2078]
[1742493024211,4.41044,1972.5,1972.4,4.5159]
[1742493024822,4.41044,1972.5,1972.4,1.3081]
[1742493030813,4.41044,1972.5,1972.4,2.0099]
[1742493031219,4.41044,1972.5,1972.4,2.66440219]
[1742493031414,5.74594,1972.5,1972.4,0.65450219]
[1742493031621,8.95374,1972.5,1972.4,0.65450219]
[1742493031825,1.01447,1972.4,1972.3,0.00760206]
[1742493032022,3.00407,1972.4,1972.3,0.00760206]
[1742493033227,1.01468,1972.0,1971.9,3.2078]
[1742493033526,4.40968,1972.0,1971.9,4.5656]
[1742493034126,5.82548,1972.0,1971.9,4.5656]
[1742493035724,5.82548,1972.0,1971.4,2.92257498]
[1742493035725,2.53684,1971.9,1971.3,3.2078]
[1742493035929,3.395,1971.8,1971.4,1.01495]
[1742493036129,1.01491,1971.6,1971.4,1.01495]
[1742493036424,1.01488,1971.7,1971.5,4.22274]
[1742493036618,3.395,1971.8,1971.7,1.01483]
[1742493036822,4.41076,1971.9,1971.7,4.22262]
[1742493037028,1.01478,1971.8,1971.6,1.39390206]
[1742493037229,1.01483,1971.7,1971.6,1.39390206]
[1742493037437,5.10513,1971.7,1971.6,1.39390206]
[1742493038633,5.10513,1971.7,1971.6,0.00760206]
[1742493039426,8.31293,1971.7,1971.6,0.00760206]
[1742493040730,1.01499,1971.4,1971.3,3.2078]
[1742493041030,1.01499,1971.4,1971.1,1.3182]
[1742493041031,1.01509,1971.2,1971.1,1.3182]
[1742493041231,4.41109,1971.2,1971.1,1.3182]
[1742493041636,5.78679,1971.2,1971.1,1.3182]
[1742493043126,3.396,1971.3,1971.2,1.01507]
[1742493043332,3.396,1971.3,1971.2,0.6869]
[1742493043840,3.396,1971.3,1971.2,2.109]
[1742493044139,4.41104,1971.3,1971.2,2.109]
[1742493044328,3.396,1971.3,1971.2,2.109]
[1742493045333,4.41103,1971.4,1971.2,2.109]
[1742493045534,4.41103,1971.4,1971.3,1.4221]
[1742493046034,4.41103,1971.4,1971.3,2.0675]
[1742493047245,3.396,1971.4,1971.3,2.0675]
[1742493047441,4.41099,1971.4,1971.3,2.0675]
[1742493048129,3.396,1971.4,1971.3,2.0675]
[1742493048331,4.41099,1971.4,1971.3,2.0675]
[1742493049646,1.0149,1971.6,1971.4,1.01496]
[1742493049939,0.6908,1971.9,1971.5,1.3649]
[1742493050137,5.478,1971.9,1971.6,0.7064]
[1742493050339,1.01481,1971.8,1971.7,2.0204]
[1742493050737,2.40501,1971.8,1971.7,2.0204]
[1742493051544,1.3902,1971.8,1971.7,2.0204]
[1742493051742,2.40498,1971.8,1971.7,2.0204]
[1742493052948,4.41176,1971.9,1971.7,3.03523]
[1742493053138,4.41176,1971.9,1971.8,1.3338]
[1742493053444,5.76972,1972.0,1971.8,1.3338]
[1742493053640,5.76972,1972.0,1971.8,2.34856]
[1742493053841,1.01473,1971.9,1971.8,1.3338]
[1742493054148,1.01473,1971.9,1971.7,1.67029]
[1742493054149,2.37373,1971.9,1971.7,0.6555]
[1742493054645,1.01478,1971.8,1971.7,0.6555]
[1742493054940,2.37378,1971.8,1971.7,0.6555]
[1742493055142,2.37378,1971.8,1971.6,0.7064]
[1742493055143,1.01494,1971.5,1971.4,3.2078]
[1742493055740,2.32033,1971.6,1971.4,4.22279]
[1742493056545,1.3054,1971.6,1971.4,4.22279]
[1742493057042,1.01494,1971.5,1971.4,3.2078]
[1742493057443,1.01494,1971.5,1971.4,4.22279]
[1742493057643,1.01494,1971.5,1971.4,3.86265718]
[1742493058844,4.05,1971.8,1971.5,1.01489]
[1742493059040,1.01489,1971.6,1971.5,1.01489]
[1742493059245,1.01489,1971.6,1971.5,1.66974718]
[1742493059840,4.05,1971.8,1971.5,0.65485718]
[1742493060041,1.01488,1971.7,1971.6,4.89776]
[1742493060446,1.01488,1971.7,1971.6,5.55261718]
[1742493060642,1.01488,1971.7,1971.6,0.65485718]
[1742493061246,1.01488,1971.7,1971.4,3.2078]
[1742493061247,1.01494,1971.5,1971.4,3.2078]
[1742493061642,1.01494,1971.5,1971.4,3.86401564]
[1742493062034,2.0262,1971.6,1971.4,4.87900564]
[1742493062035,3.04111,1971.6,1971.4,4.87900564]
[1742493062246,4.41086,1971.7,1971.5,1.01491]
[1742493062447,4.41086,1971.7,1971.6,0.6751]
[1742493063547,1.01489,1971.6,1971.4,4.87900564]
[1742493063745,1.01494,1971.5,1971.4,4.87900564]
[1742493063952,1.01494,1971.5,1971.4,3.86401564]
[1742493064145,2.36081,1971.6,1971.4,4.22279]
[1742493064447,1.01491,1971.6,1971.4,4.22275]
[1742493064650,4.8087,1971.7,1971.4,4.22275]
[1742493064950,1.01493,1971.6,1971.5,0.65642252]
[1742493065642,5.82357,1971.7,1971.5,0.65642252]
[1742493065843,1.01487,1971.7,1971.6,4.22269]
[1742493066246,1.01487,1971.7,1971.6,3.2078]
[1742493066444,1.01487,1971.7,1971.6,3.86422252]
[1742493067145,1.01487,1971.7,1971.6,0.65642252]
[1742493069652,1.01487,1971.7,1971.6,3.86422252]
[1742493070347,2.41097,1971.7,1971.6,3.86422252]
[1742493071253,1.01499,1971.4,1971.3,0.6779]
[1742493071552,1.01499,1971.4,1971.3,5.94914492]
[1742493071747,1.01499,1971.4,1971.3,3.38424492]
[1742493072144,1.01499,1971.4,1971.3,6.59204492]
[1742493072753,1.01499,1971.4,1971.3,7.60708492]
[1742493073440,1.01499,1971.4,1971.3,3.38424492]
[1742493073642,1.01499,1971.4,1971.3,6.59204492]
[1742493075852,1.01499,1971.4,1971.3,2.70634492]
[1742493076053,1.01499,1971.4,1971.3,2.06344492]
[1742493077647,1.01499,1971.4,1971.3,0.65644492]
[1742493077945,4.22279,1971.4,1971.3,0.65644492]
[1742493078143,1.01514,1971.1,1971.0,0.00760206]
[1742493078344,4.41114,1971.1,1971.0,0.00760206]
[1742493078754,5.10984,1971.1,1971.0,0.00760206]
[1742493080051,5.10984,1971.1,1971.0,2.05380206]
[1742493080654,5.10984,1971.1,1971.0,0.00760206]
[1742493080848,8.31764,1971.1,1971.0,2.06e-06]
[1742493085750,1.01514,1971.1,1971.0,2.06e-06]
[1742493086747,1.01514,1971.1,1971.0,1.28530206]
[1742493087353,1.01514,1971.1,1971.0,2.06e-06]
[1742493091463,1.01514,1971.1,1971.0,1.40520206]
[1742493091663,2.32794,1971.1,1971.0,1.40520206]
[1742493092557,1.01514,1971.1,1971.0,1.40520206]
[1742493092755,1.01514,1971.1,1971.0,2.04980206]
[1742493092955,1.01514,1971.1,1971.0,2.70050697]
[1742493096965,1.01514,1971.1,1971.0,2.04980206]
[1742493098353,1.01514,1971.1,1971.0,2.70129487]
[1742493106166,2.34174,1971.1,1971.0,2.70129487]
[1742493107264,1.01514,1971.1,1971.0,2.70129487]
[1742493111870,2.32504,1971.1,1971.0,2.70129487]
[1742493112064,1.01514,1971.1,1971.0,2.70129487]
[1742493116366,1.0151,1971.2,1971.0,2.70129487]
[1742493116672,1.01504,1971.3,1971.2,1.01506]
[1742493116881,1.01504,1971.3,1971.2,1.4068]
[1742493117680,1.01504,1971.3,1971.2,2.05829281]
[1742493118879,1.67424,1971.3,1971.2,2.05829281]
[1742493120571,1.67424,1971.3,1971.2,0.65149281]
[1742493121078,3.04604,1971.3,1971.2,0.65149281]
[1742493129382,1.01504,1971.3,1971.2,0.65149281]
[1742493129892,1.01504,1971.3,1971.2,1.98279281]
[1742493132083,1.01503,1971.4,1971.2,1.98279281]
[1742493132390,1.01503,1971.4,1971.3,5.2677]
[1742493132687,1.01503,1971.4,1971.3,6.57899281]
[1742493137288,1.01503,1971.4,1971.3,3.37119281]
[1742493137490,1.01503,1971.4,1971.3,2.71139281]
[1742493137787,8.31683,1971.4,1971.3,2.81e-06]
[1742493138390,1.01509,1971.2,1971.1,1.3713]
[1742493138791,1.01514,1971.1,1971.0,2.06e-06]
[1742493139085,3.07684,1971.1,1971.0,1.37130206]
[1742493140088,3.07684,1971.1,1971.0,2.06e-06]
[1742493140287,3.71884,1971.1,1971.0,2.06e-06]
[1742493141187,4.22283,1971.4,1971.0,2.06e-06]
[1742493141394,1.01514,1971.1,1971.0,1.28970206]
[1742493142382,1.01514,1971.1,1971.0,2.06e-06]
[1742493142383,4.40814,1971.1,1971.0,2.06e-06]
[1742493142688,5.09314,1971.1,1971.0,2.06e-06]
[1742493142986,6.37694,1971.1,1971.0,2.06e-06]
[1742493147587,6.79077066,1971.1,1971.0,2.06e-06]
[1742493149898,6.37694,1971.1,1971.0,2.06e-06]
[1742493152999,5.69194,1971.1,1971.0,2.06e-06]
[1742493156306,5.69194,1971.1,1970.7,0.675]
[1742493156307,1.0154,1970.8,1970.7,0.675]
[1742493156601,1.0154,1970.8,1970.1,6.6008]
[1742493156602,1.01571,1970.2,1970.1,6.6008]
[1742493156996,1.01571,1970.2,1970.1,7.24724039]
[1742493158300,1.01571,1970.2,1970.1,0.64644039]
[1742493158502,2.31871,1970.2,1970.1,0.64644039]
[1742493159701,2.31871,1970.2,1970.1,1.3695]
[1742493159907,1.01571,1970.2,1970.1,1.3695]
[1742493161001,2.31871,1970.2,1970.1,1.3695]
[1742493161213,3.02441,1970.2,1970.1,1.3695]
[1742493161616,1.01576,1970.1,1970.0,1.37286802]
[1742493161806,5.78436,1970.1,1970.0,2.67936802]
[1742493162513,5.78436,1970.1,1970.0,1.97336802]
[1742493164217,4.40876,1970.1,1970.0,1.97336802]
[1742493164419,5.78436,1970.1,1970.0,1.97336802]
[1742493164607,6.42866,1970.1,1970.0,1.97336802]
[1742493170318,5.78436,1970.1,1970.0,1.97336802]
[1742493171107,5.78536,1970.1,1970.0,1.97336802]
[1742493172024,1.01576,1970.1,1970.0,1.97336802]
[1742493174519,2.34136,1970.1,1970.0,1.97336802]
[1742493177627,2.98536,1970.1,1970.0,1.97336802]
[1742493179214,1.01586,1969.9,1969.8,0.6629]
[1742493179420,2.54018,1969.6,1969.3,3.394]
[1742493179618,1.01607,1969.5,1969.4,0.691]
[1742493180119,1.01607,1969.5,1969.4,1.33901686]
[1742493180523,4.22387,1969.5,1969.4,1.33901686]
[1742493180825,5.59867,1969.5,1969.4,0.64801686]
[1742493181025,1.01622,1969.2,1969.1,0.691]
[1742493181728,2.39102,1969.2,1969.1,0.691]
[1742493182927,2.39102,1969.2,1969.1,1.9899]
[1742493184926,1.01622,1969.2,1969.1,1.9899]
[1742493185123,1.01622,1969.2,1969.1,2.63895612]
[1742493186923,5.93434,1969.4,1969.1,2.63895612]
[1742493187125,1.01617,1969.3,1969.2,4.6832]
[1742493187324,1.01617,1969.3,1969.2,5.69942]
[1742493187530,1.01617,1969.3,1969.2,8.19942]
[1742493187732,1.01617,1969.3,1969.2,7.1832]
[1742493188231,1.01617,1969.3,1969.2,4.6832]
[1742493189022,1.01617,1969.3,1969.2,1.2892]
[1742493190333,1.01617,1969.3,1969.2,1.93825612]
[1742493190726,1.01617,1969.3,1969.2,2.95447612]
[1742493192726,1.01616,1969.4,1969.3,1.01613]
[1742493192929,1.01616,1969.4,1969.3,6.34328612]
[1742493193525,1.0161,1969.5,1969.4,1.01605]
[1742493193728,1.0161,1969.5,1969.4,2.96775]
[1742493194235,1.0161,1969.5,1969.4,3.61680612]
[1742493195629,1.01605,1969.6,1969.5,1.01602]
[1742493195829,1.01605,1969.6,1969.5,5.73172]
[1742493196330,1.01605,1969.6,1969.5,5.36475612]
[1742493196528,2.37515,1969.6,1969.5,5.36475612]
[1742493196934,2.37515,1969.6,1969.5,6.38082612]
[1742493197128,2.37515,1969.6,1969.5,5.36475612]
[1742493197329,2.37515,1969.6,1969.5,6.38082612]
[1742493197932,2.37515,1969.6,1969.5,5.36475612]
[1742493199135,2.37515,1969.6,1969.5,1.97075612]
[1742493199341,2.37515,1969.6,1969.5,0.64905612]
[1742493200233,1.01607,1969.5,1969.4,1.3479]
[1742493200532,3.02427,1969.5,1969.4,1.99867061]
[1742493200733,1.2982,1969.5,1969.4,3.01479061]
[1742493200940,4.2238,1969.7,1969.6,1.01602]
[1742493201140,5.538,1969.7,1969.6,1.01602]
[1742493201541,1.01602,1969.6,1969.5,5.10853]
[1742493201741,2.33022,1969.6,1969.5,5.10853]
[1742493202041,4.22381,1969.7,1969.6,1.01602]
[1742493202741,5.53801,1969.7,1969.6,0.65076705]
[1742493212442,2.33021,1969.7,1969.6,1.66678705]
[1742493212646,1.01597,1969.7,1969.6,1.66678705]
[1742493213047,2.41374,1969.8,1969.7,1.01597]
[1742493213251,1.01594,1969.8,1969.7,7.61577]
[1742493213745,1.01594,1969.8,1969.7,8.26653705]
[1742493214650,1.01594,1969.8,1969.7,7.25056705]
[1742493215354,1.01594,1969.8,1969.7,4.04276705]
[1742493215550,1.01594,1969.8,1969.7,5.05873705]
[1742493216547,1.01594,1969.8,1969.7,4.04276705]
[1742493216756,1.72534,1969.8,1969.7,4.04276705]
[1742493218456,1.72534,1969.8,1969.7,0.65076705]
[1742493219256,1.72534,1969.8,1969.7,1.66673705]
[1742493219456,1.72534,1969.8,1969.7,0.65076705]
[1742493219660,1.01594,1969.8,1969.7,1.66673705]
[1742493220060,1.01594,1969.8,1969.7,4.87453705]
[1742493220758,2.33001,1969.9,1969.8,1.01592]
[1742493220964,2.33001,1969.9,1969.8,5.10282]
[1742493221262,2.33001,1969.9,1969.8,5.75358705]
[1742493221658,2.33001,1969.9,1969.8,7.08978705]
[1742493221855,3.2078,1970.2,1969.8,6.07386705]
[1742493222061,2.30327,1970.1,1970.0,1.01581]
[1742493222763,2.30327,1970.1,1970.0,1.66657705]
[1742493224062,2.30327,1970.1,1970.0,0.65076705]
[1742493224261,2.30327,1970.1,1970.0,1.66657705]
[1742493224568,2.30327,1970.1,1970.0,5.05757705]
[1742493226373,2.30327,1970.1,1970.0,4.04176705]
[1742493226675,2.30327,1970.1,1970.0,5.05757705]
[1742493229178,2.30327,1970.1,1970.0,4.04176705]
[1742493229578,2.30327,1970.1,1970.0,0.65076705]
[1742493229579,6.17727,1970.1,1970.0,0.65076705]
[1742493230173,9.56827,1970.1,1970.0,0.65076705]
[1742493230578,1.01592,1969.8,1969.7,3.391]
[1742493230779,1.01601,1969.7,1969.6,1.01601]
[1742493230978,2.41441,1969.7,1969.6,1.01601]
[1742493231177,2.41441,1969.7,1969.6,1.66721199]
[1742493231381,2.41441,1969.7,1969.6,0.65120199]
[1742493233781,2.41441,1969.7,1969.6,1.66722199]
[1742493234171,2.41441,1969.7,1969.6,0.65120199]
[1742493240181,2.41441,1969.7,1969.6,1.66722199]
[1742493240384,2.41441,1969.7,1969.6,0.65120199]
[1742493240583,2.41441,1969.7,1969.6,1.66722199]
[1742493241588,2.41441,1969.7,1969.6,3.07402199]
[1742493241892,2.41441,1969.7,1969.6,2.05800199]
[1742493243489,2.41441,1969.7,1969.6,1.99e-06]
[1742493243787,5.62221,1969.7,1969.6,1.99e-06]
[1742493245187,9.01221,1969.7,1969.6,1.99e-06]
[1742493245586,1.01607,1969.5,1969.4,1.2821]
[1742493246390,2.41757,1969.5,1969.4,1.2821]
[1742493246586,1.01617,1969.3,1969.2,4.5875]
[1742493247094,1.01617,1969.3,1969.2,5.9739]
[1742493247392,1.66297,1969.3,1969.2,5.9739]
[1742493248495,1.66297,1969.3,1969.2,2.7661]
[1742493248689,1.01643,1968.8,1968.7,51.54362802]
[1742493248889,1.01643,1968.8,1968.7,54.55126]
[1742493249195,1.01648,1968.7,1968.6,0.6994]
[1742493249886,1.01648,1968.7,1968.6,2.7561]
[1742493250286,2.37628,1968.7,1968.6,2.7561]
[1742493252088,2.37628,1968.7,1968.6,0.6703]
[1742493254498,2.37628,1968.7,1968.6,1.68683]
[1742493254797,2.37628,1968.7,1968.6,1.3316]
[1742493254989,2.37628,1968.7,1968.6,3.70043]
[1742493255190,1.01648,1968.7,1968.6,3.70043]
[1742493255498,0.00760206,1968.9,1968.8,1.01643]
[1742493255693,0.00760206,1968.9,1968.8,7.61423]
[1742493256684,0.00760206,1968.9,1968.8,8.2594569]
[1742493256685,1.02398206,1968.9,1968.8,8.2594569]
[1742493256891,0.00760206,1968.9,1968.8,8.2594569]
[1742493257696,1.02398206,1968.9,1968.8,8.2594569]
[1742493257894,0.00760206,1968.9,1968.8,8.2594569]
[1742493258400,1.02398206,1968.9,1968.8,8.2594569]
[1742493258593,1.02398206,1968.9,1968.8,7.2430269]
[1742493258796,1.02398206,1968.9,1968.8,3.8530269]
[1742493258988,1.02398206,1968.9,1968.8,0.6452269]
[1742493259191,1.67968206,1968.9,1968.6,0.6703]
[1742493259392,1.01648,1968.7,1968.6,0.6703]
[1742493259792,1.01648,1968.7,1968.6,1.31634861]
[1742493259992,1.01648,1968.7,1968.6,0.64604861]
[1742493261293,4.22428,1968.7,1968.6,0.64604861]
[1742493261494,1.01659,1968.5,1968.4,4.0827]
[1742493261693,1.01659,1968.5,1968.4,5.3677]
[1742493262302,1.01659,1968.5,1968.4,6.01368719]
[1742493263698,4.22439,1968.5,1968.4,0.64598719]
[1742493263892,1.01674,1968.2,1968.1,1.289]
[1742493264398,1.01674,1968.2,1968.1,1.93469078]
[1742493264797,2.34124,1968.2,1968.1,1.289]
[1742493265992,1.01679,1968.1,1968.0,0.7106]
[1742493266198,2.33459,1968.1,1968.0,0.7106]
[1742493266796,2.33459,1968.1,1968.0,2.1144]
[1742493272801,1.01684,1968.0,1967.9,3.2078]
[1742493273007,2.40434,1968.0,1967.9,5.87837884]
[1742493274302,2.40434,1968.0,1967.9,0.64537884]
[1742493275004,3.8781,1968.3,1968.0,1.0168]
[1742493275005,1.01683,1968.1,1968.0,1.0168]
[1742493275207,1.01683,1968.1,1968.0,2.964]
[1742493275709,1.01683,1968.1,1968.0,2.59296167]
[1742493276998,1.01683,1968.1,1968.0,3.60980167]
[1742493277198,1.01683,1968.1,1968.0,2.59296167]
[1742493277614,1.01683,1968.1,1968.0,3.60980167]
[1742493280713,1.01683,1968.1,1968.0,2.59296167]
[1742493281505,1.01683,1968.1,1968.0,3.60980167]
[1742493281707,1.01683,1968.1,1968.0,4.28620167]
[1742493284208,1.01678,1968.2,1968.1,1.01675]
[1742493284408,2.35258,1968.2,1968.1,5.79675]
[1742493284714,1.01671,1968.3,1968.2,1.01669]
[1742493284913,2.35247,1968.4,1968.3,1.01664]
[1742493285113,2.35247,1968.4,1968.3,2.36660167]
[1742493287412,2.35247,1968.4,1968.3,5.75660167]
[1742493287617,2.35247,1968.4,1968.3,4.73996167]
[1742493287919,2.35247,1968.4,1968.3,5.75665167]
[1742493288320,3.04017,1968.4,1968.3,0.64576167]
[1742493293924,6.42917,1968.4,1968.3,0.64576167]
[1742493294628,1.01684,1968.0,1967.9,1.3264]
[1742493295018,1.01684,1968.0,1967.9,2.3433]
[1742493295220,1.01684,1968.0,1967.9,1.97583888]
[1742493295428,2.40854,1968.0,1967.9,1.97583888]
[1742493299844,5.61634,1968.0,1967.9,0.64943888]
[1742493300140,5.61634,1968.0,1967.9,8.88e-06]
[1742493300641,1.01705,1967.6,1967.5,5.4069]
[1742493300845,1.01705,1967.6,1967.5,2.0179]
[1742493301347,2.36865,1967.6,1967.5,2.0179]
[1742493302237,1.3516,1967.6,1967.5,2.0179]
[1742493302639,1.3516,1967.6,1967.5,5.4069]
[1742493303039,0.00762156,1967.7,1967.5,6.42399]
[1742493303248,0.00762156,1967.7,1967.6,2.0858]
[1742493303445,0.00762156,1967.7,1967.6,6.31065]
[1742493303944,1.01679,1968.1,1967.8,1.01693]
[1742493304150,2.43839,1968.1,1967.9,4.7965]
[1742493304351,2.43839,1968.1,1968.0,1.4075]
[1742493304643,1.4216,1968.1,1968.0,2.42434]
[1742493304950,1.2927,1968.3,1968.0,2.0858]
[1742493305146,0.00762156,1968.2,1968.1,4.6884]
[1742493305349,0.00762156,1968.2,1968.1,3.389]
[1742493305537,1.30032156,1968.2,1968.1,4.40579]
[1742493305736,1.30032156,1968.2,1968.1,3.389]
[1742493306445,0.00762156,1968.2,1968.1,4.40579]
[1742493306839,0.00762156,1968.2,1968.1,3.389]
[1742493307547,0.00762156,1968.2,1968.1,4.40579]
[1742493311349,0.00762156,1968.2,1968.1,3.389]
[1742493311350,1.02436156,1968.2,1968.1,3.389]
[1742493311541,1.02436156,1968.2,1968.1,4.40579]
[1742493312349,0.00762156,1968.2,1968.1,5.04872094]
[1742493312751,1.33942156,1968.2,1968.1,5.04872094]
[1742493314054,2.35616156,1968.2,1968.1,5.04872094]
[1742493315152,2.35616156,1968.2,1968.1,4.03193094]
[1742493315746,2.35616156,1968.2,1968.1,0.64293094]
[1742493316046,6.22876156,1968.2,1968.1,0.64293094]
[1742493317850,3.02096156,1968.2,1968.1,0.64293094]
[1742493318558,6.22876156,1968.2,1968.1,0.64293094]
[1742493319360,1.01684,1968.0,1967.9,0.00762156]
[1742493320059,1.01684,1968.0,1967.9,0.65068258]
[1742493321955,1.01684,1968.0,1967.9,1.95798258]
[1742493322363,1.01684,1968.0,1967.9,2.97488258]
[1742493322865,1.01684,1968.0,1967.9,1.95798258]
[1742493323762,1.01684,1968.0,1967.9,2.97488258]
[1742493323967,1.01684,1968.0,1967.9,1.95798258]
[1742493324171,1.01684,1968.0,1967.9,2.97488258]
[1742493324669,2.42134,1968.1,1968.0,1.01684]
[1742493324872,2.42134,1968.1,1968.0,6.43694]
[1742493324873,1.01684,1968.1,1968.0,6.43694]
[1742493325063,1.02441156,1968.2,1968.1,1.01679]
[1742493325264,1.02441156,1968.2,1968.1,2.99959]
[1742493325563,2.35011156,1968.2,1968.1,2.99959]
[1742493326168,2.35011156,1968.2,1968.1,3.64265102]
[1742493326371,1.02441156,1968.2,1968.1,3.64265102]
[1742493326569,0.00762156,1968.2,1968.1,3.64265102]
[1742493326765,0.00762156,1968.2,1968.1,6.85045102]
[1742493326969,1.01668,1968.4,1968.3,1.01669]
[1742493327170,2.34438,1968.4,1968.3,4.40369]
[1742493327875,2.34438,1968.4,1968.3,5.04675102]
[1742493331076,2.34438,1968.4,1968.3,0.64306102]
[1742493332179,2.34438,1968.4,1968.3,2.04506102]
[1742493333279,2.34438,1968.4,1968.3,3.06175102]
[1742493333672,2.34438,1968.4,1968.3,5.43206102]
[1742493333872,2.34438,1968.4,1968.3,6.44875102]
[1742493334074,2.34438,1968.4,1968.3,5.43206102]
[1742493337471,2.34438,1968.4,1968.3,4.03006102]
[1742493338277,3.05158,1968.4,1968.3,4.03006102]
[1742493338780,3.05158,1968.4,1968.3,5.35576102]
[1742493339176,3.05158,1968.4,1968.3,1.02e-06]
[1742493339177,8.75938,1968.4,1968.3,1.02e-06]
[1742493339882,1.01684,1968.0,1967.9,0.00762156]
[1742493340575,1.01684,1968.0,1967.9,1.33332156]
[1742493340776,2.42634,1968.0,1967.9,1.33332156]
[1742493344184,5.63414,1968.0,1967.9,0.00762156]
[1742493344480,6.32944,1968.0,1967.9,0.00762156]
[1742493348177,2.42634,1968.0,1967.9,0.00762156]
[1742493348682,2.42634,1968.0,1967.9,1.35802156]
[1742493350584,1.4095,1968.0,1967.9,2.37492156]
[1742493350889,1.01684,1968.0,1967.9,1.35802156]
[1742493351089,2.31994,1968.0,1967.9,1.35802156]
[1742493353986,2.31994,1968.0,1967.9,2.37492156]
[1742493354183,1.01684,1968.0,1967.9,2.37492156]
[1742493354387,1.01684,1968.0,1967.9,1.35802156]
[1742493354591,1.01684,1968.0,1967.9,2.37492156]
[1742493355495,1.01684,1968.0,1967.9,1.35802156]
[1742493358792,1.71584,1968.0,1967.9,1.35802156]
[1742493360188,1.01684,1968.0,1967.9,1.35802156]
[1742493360590,1.01684,1968.0,1967.9,2.37492156]
[1742493360789,1.01683,1968.1,1968.0,1.01684]
[1742493360995,2.43546,1968.3,1968.2,1.01674]
[1742493361295,2.43546,1968.3,1968.2,4.40174]
[1742493361490,1.01676,1968.3,1968.2,4.40174]
[1742493361900,1.01676,1968.3,1968.2,8.92534]
[1742493363189,1.01676,1968.3,1968.2,4.7008]
[1742493363495,1.01674,1968.2,1968.1,4.0528]
[1742493363695,3.03614,1968.2,1968.1,4.0528]
[1742493364698,2.38684,1968.2,1968.1,5.06959]
[1742493364895,2.38684,1968.2,1968.1,5.76679]
[1742493365399,1.01674,1968.3,1968.2,1.01674]
[1742493365587,1.01674,1968.3,1968.2,2.42544]
[1742493367395,1.02426156,1968.5,1968.4,1.01664]
[1742493367596,2.33666156,1968.5,1968.4,1.01664]
[1742493368100,1.02426156,1968.5,1968.4,3.11954]
[1742493370996,0.00762156,1968.5,1968.4,2.1029]
[1742493371302,1.02421156,1968.5,1968.4,2.1029]
[1742493371498,1.70611156,1968.5,1968.4,3.11954]
[1742493371695,1.02421156,1968.5,1968.4,3.11954]
[1742493372100,0.00762156,1968.5,1968.1,3.8756]
[1742493372301,1.01669,1968.3,1968.2,1.3284]
[1742493372797,2.42399,1968.3,1968.2,2.34514]
[1742493372991,2.42399,1968.3,1968.2,1.3284]
[1742493374097,1.01679,1968.1,1968.0,0.6578]
[1742493374294,1.01679,1968.1,1968.0,5.3702]
[1742493374494,1.01679,1968.1,1968.0,4.7124]
[1742493374697,1.69629,1968.1,1968.0,5.72924]
[1742493374998,2.42408,1968.2,1968.1,1.01679]
[1742493375201,2.42408,1968.2,1968.1,2.31109]
[1742493376505,1.4073,1968.2,1968.1,2.31109]
[1742493376806,1.4073,1968.2,1968.1,10.74009]
[1742493376807,2.42404,1968.2,1968.1,10.74009]
[1742493377100,1.4073,1968.2,1968.1,10.74009]
[1742493378400,2.42404,1968.2,1968.1,9.7233]
[1742493378906,2.42404,1968.2,1968.1,10.74009]
[1742493379305,2.42404,1968.2,1968.1,1.2943]
[1742493379999,1.01679,1968.1,1968.0,3.384]
[1742493380205,3.02859,1968.1,1968.0,5.73574]
[1742493380802,2.36739,1968.1,1968.0,5.73574]
[1742493382210,1.01684,1968.0,1967.9,4.71502156]
[1742493382403,3.10864,1968.0,1967.9,6.02752156]
[1742493382708,3.10864,1968.0,1967.9,5.37572156]
[1742493384910,3.10864,1968.0,1967.9,6.39262156]
[1742493385103,3.10864,1968.0,1967.9,5.37572156]
[1742493387309,3.10864,1968.0,1967.9,6.39262156]
[1742493387712,1.01684,1968.1,1968.0,1.01684]
[1742493387914,2.40724,1968.1,1968.0,5.79034]
[1742493388305,2.40724,1968.1,1968.0,1.3905]
[1742493388518,1.01684,1968.0,1967.9,0.00762156]
[1742493388810,1.017,1967.7,1967.6,3.2078]
[1742493389620,1.7082,1967.7,1967.6,3.2078]
[1742493390213,1.7082,1967.7,1967.5,1.39812156]
[1742493390214,1.01705,1967.6,1967.5,1.39812156]
[1742493390415,2.33515,1967.6,1967.5,4.78112156]
[1742493391112,2.33515,1967.6,1967.5,0.00762156]
[1742493391314,5.54295,1967.6,1967.5,0.00762156]
[1742493391709,2.33515,1967.6,1967.5,0.00762156]
[1742493391909,1.3181,1967.6,1967.5,3.04472156]
[1742493392109,1.3181,1967.6,1967.5,5.23542156]